Cogmind - Beta 14 @@@ ROGUE MODE // 2024.09.17 @ 19:28:29 Player: Mallow Result: Destroyed self via exploding Nuclear Reactor Performance ------------- Evolutions (3) 1500 Regions Visited (6) 1200 Robots Destroyed (53) 265 Value Destroyed (1672) 1672 Prototype IDs (2) 40 Alien Tech Used (0) 0 Bonus (53) 53 TOTAL SCORE: 4730 Bonus ------- High Alert Combat Kills 71 Friendly Fire -18 Cogmind --------- Core Integrity 0/700 Matter 6/300 Energy 0/100 System Corruption 4% Temperature Warm (158) Movement Core (50) Location -7/Factory Parts ------- > --- POWER (1) -------- (None) > --- PROPULSION (4) --- (None) > --- UTILITY (6) ------ Structural Scanner Advanced Visual Processing Unit Improved Terrain Scan Processor System Shield > --- WEAPON (2) ------- (None) > --- INVENTORY (5) ---- Medium Storage Unit Hardened Medium Armor Plating Gauss Rifle Great Axe Peak State ------------ > --- POWER ------------ Micro Nuclear Core > --- PROPULSION ------- Aluminum Leg Improved Aluminum Leg Improved Aluminum Leg Carbon-fiber Leg > --- UTILITY ---------- Medium Storage Unit Improved Terrain Scanner Improved Terrain Scan Processor Light Armor Plating Hacking Suite System Shield > --- WEAPON ----------- Heavy Missile Launcher > --- INVENTORY -------- Micro Nuclear Core Micro Nuclear Core Improved Heat Sink Medium Storage Unit Structural Scanner Heavy Missile Launcher Heavy Missile Launcher [Rating: 32] Favorites ----------- Power Light Nuclear Core Engine Light Angular Momentum Engine Power Core Light Nuclear Core Propulsion Improved Aluminum Leg Treads Light Treads Leg Improved Aluminum Leg Flight Unit VTOL Module Utility Medium Storage Unit Device Improved Terrain Scanner Storage Medium Storage Unit Processor Signal Interpreter Hackware System Shield Protection Light Armor Plating Weapon Heavy Assault Rifle Ballistic Gun Heavy Assault Rifle Launcher Heavy Missile Launcher Build | -11 -10 -10 -10 -9 -8 -7 ------- Run | Yrd Mat Min Exi Min Mat Fac Slots Evolved 6 | . . . . . 4 2 Power . | . . . . . . . Propulsion 2 | . . . . . 2 . Utility 4 | . . . . . 2 2 Weapon . | . . . . . . . Parts Attached 56 | 7 11 3 . 1 12 22 Power 10 | 2 2 1 . . 1 4 Engine 4 | 2 1 1 . . . . Core 6 | . 1 . . . 1 4 Reactor . | . . . . . . . Propulsion 16 | 2 3 2 . . 6 3 Treads 2 | 2 . . . . . . Leg 12 | . 3 2 . . 6 1 Wheel . | . . . . . . . Hover . | . . . . . . . Flight 2 | . . . . . . 2 Utility 14 | 1 2 . . . 3 8 Device 6 | . . . . . . 6 Storage 2 | 1 1 . . . . . Processor 3 | . 1 . . . . 2 Hackware 2 | . . . . . 2 . Protection 1 | . . . . . 1 . Artifact . | . . . . . . . Weapon 16 | 2 4 . . 1 2 7 Energy Gun . | . . . . . . . Energy Cannon . | . . . . . . . Ballistic Gun 8 | 2 4 . . 1 . 1 Ballistic Cannon . | . . . . . . . Launcher 8 | . . . . . 2 6 Special Weapon . | . . . . . . . Impact Weapon . | . . . . . . . Slashing Weapon . | . . . . . . . Piercing Weapon . | . . . . . . . Special Melee Weapon . | . . . . . . . Unidentified Prototypes 2 | . . . . . . 2 Parts Lost 16 | . . . . . 2 14 Power . | . . . . . . . Propulsion 7 | . . . . . 1 6 Utility 4 | . . . . . . 4 Weapon 5 | . . . . . 1 4 Highest Loss Streak 4 | . . . . . 1 4 To Critical Strikes . | . . . . . . . Average Slot Usage (%) 91 | . 98 100 100 100 94 55 Engine 5 | . 3 14 14 14 1 . Core 5 | . 10 . . . 7 4 Treads 3 | . 8 . . . . . Leg 21 | . 19 28 28 28 31 8 Device 2 | . . . . . . 13 Storage 11 | . 14 14 14 14 9 2 Processor 12 | . 13 14 14 14 7 9 Hackware 4 | . . . . . 17 10 Ballistic Gun 20 | . 27 28 28 28 9 . Launcher 1 | . . . . . 8 2 Peak Build Rating 32 | 6 14 17 17 17 29 32 Average Rating 16 | 3 11 14 17 17 26 20 On Entrance 13 | . 6 12 17 17 17 26 Naked Turns . | . . . . . . . Heaviest Build 29 | 12 21 25 25 25 29 27 Greatest Support 56 | 40 40 28 28 28 56 51 Greatest Overweight (x) 6 | 1 6 . . . . 3 Average Overweight (x) . | . . . . . . . Largest Inventory Capacity 10 | 8 10 10 10 10 10 10 Average Capacity 9 | 6 9 10 10 10 10 6 Most Carried 10 | 4 8 10 9 9 10 9 Average Carried 6 | 1 5 7 9 9 9 5 Final Capacity 10 | 8 10 10 10 10 10 5 Final Carried 9 | 1 7 9 9 9 9 4 Class Distribution -------------------- 74% | Mutant 19% | Hacker-Mutant 4% | Scout Dominant Class ---------------- Mutant | -10/Materials Mutant | -10/Mines Mutant | -10/Exiles Mutant | -9/Mines Hacker-Mutant | -8/Materials Hacker-Mutant | -7/Factory Resources | -11 -10 -10 -10 -9 -8 -7 ----------- Run | Yrd Mat Min Exi Min Mat Fac Matter Collected 1114 | 183 373 127 . 40 208 183 Remotely . | . . . . . . . Salvage Created 1302 | . 412 48 . . 478 364 Parts 94 | . 37 3 . . 32 22 Haulers Intercepted 1 | . . . . . . 1 Recyclers Shooed 4 | . 2 . . . 2 . Parts Field Recycled . | . . . . . . . Retrieved Matter . | . . . . . . . Parts Self-Destructed . | . . . . . . . Prevented . | . . . . . . . Kills | -11 -10 -10 -10 -9 -8 -7 ------- Run | Yrd Mat Min Exi Min Mat Fac Combat Hostiles Destroyed 42 | . 10 3 . . 15 14 Guns 17 | . 10 3 . . 4 . AOE 25 | . . . . . 11 14 Classes Destroyed 13 | . 6 . . . 4 3 Worker 3 | . 1 . . . 2 . Builder 2 | . 2 . . . . . Hauler 1 | . . . . . . 1 Recycler 1 | . . . . . . 1 Mechanic 1 | . . . . . 1 . Operator 2 | . 2 . . . . . Watcher 1 | . 1 . . . . . Swarmer 14 | . 3 3 . . 3 5 Grunt 22 | . 7 . . . 9 6 Brawler 1 | . . . . . 1 . Duelist 1 | . . . . . 1 . Sentry 3 | . . . . . 1 2 Programmer 1 | . . . . . . 1 Best Kill Streak 5 | . 3 3 . . 5 3 Combat Bots Only 5 | . 2 3 . . 5 3 Max Kills in Single Turn 3 | . 1 2 . . 2 3 Gunslinging 1 | . . 1 . . . . Exploded 3 | . . . . . 2 3 Melee . | . . . . . . . Uniques/NPCs Destroyed . | . . . . . . . Combat | -11 -10 -10 -10 -9 -8 -7 -------- Run | Yrd Mat Min Exi Min Mat Fac Hostile Shots Fired 266 | . 83 22 . . 25 136 Missed 88 | . 18 8 . . 9 53 Damage Taken 2955 | . 791 111 . . 356 1697 Core 974 | . 200 12 . . 31 731 Absorbed by Shields . | . . . . . . . Core Remaining (%) 69 | 100 . . . 15 94 . Volleys Fired 103 | . 59 7 . . 18 19 Largest 2 | . 2 2 . . 2 1 Hottest 62 | . 46 46 . . 62 39 Shots Fired 180 | . 119 14 . . 28 19 Gun 150 | . 119 14 . . 17 . Cannon . | . . . . . . . Launcher 30 | . . . . . 11 19 Special . | . . . . . . . Kinetic 150 | . 119 14 . . 17 . Thermal . | . . . . . . . Explosive 29 | . . . . . 11 18 Electromagnetic 1 | . . . . . . 1 Robot Hit Streak 11 | . 11 3 . . 5 8 Robot Miss Streak 4 | . 4 4 . . 3 2 Penetration Max . | . . . . . . . Secondary Targets 2 | . 1 1 . . . . Max Gunslinging Chain 1 | . 1 1 . . . . Shots Hit Robots 115 | . 76 7 . . 19 13 Core Hits 102 | . 32 4 . . 35 31 Critical Kills . | . . . . . . . Critical Parts Destroyed 2 | . 2 . . . . . Critical Strikes 2 | . 2 . . . . . Destroy 2 | . 2 . . . . . Melee Attacks . | . . . . . . . Impact . | . . . . . . . Slashing . | . . . . . . . Piercing . | . . . . . . . Sneak Attacks . | . . . . . . . Combat Hostiles . | . . . . . . . Follow-up Attacks . | . . . . . . . Damage Inflicted 4587 | . 829 142 . . 1615 2001 Guns 1091 | . 774 136 . . 181 . Cannons . | . . . . . . . Explosions 3399 | . . . . . 1426 1973 Melee . | . . . . . . . Ramming 97 | . 55 6 . . 8 28 Kinetic 1091 | . 774 136 . . 181 . Thermal 153 | . . . . . . 153 Explosive 3205 | . . . . . 1426 1779 Electromagnetic 41 | . . . . . . 41 Impact . | . . . . . . . Slashing . | . . . . . . . Piercing . | . . . . . . . Highest Corruption 4 | . 3 3 3 3 . 4 Average Corruption 2 | . 1 3 3 3 . 3 Corruption Purged . | . . . . . . . Corruption Blocked . | . . . . . . . Effects 46 | . 13 15 7 4 . 7 Message Errors 13 | . 2 5 2 2 . 2 Matter Fused 10 | . 3 4 2 . . 1 Heat Flow Errors 5 | . 1 3 . . . 1 Energy Discharges 5 | . 3 1 1 . . . Parts Rejected 2 | . . . . . . 2 Parts Fused 2 | . 1 . 1 . . . Data Loss (minor) 4 | . 1 . . 2 . 1 Data Loss (major) 3 | . . 2 1 . . . Misfires 1 | . 1 . . . . . Alerts 1 | . 1 . . . . . Overload Shots . | . . . . . . . Overflow Damage 295 | . . . . . 50 245 Projectiles . | . . . . . . . Explosions 295 | . . . . . 50 245 Melee . | . . . . . . . Knockbacks . | . . . . . . . Impact . | . . . . . . . Kinetic . | . . . . . . . Secondary . | . . . . . . . Self-Inflicted Damage 774 | . . . . . 42 732 Shots 17 | . . . . . 3 14 Rammed 14 | . 6 . . . . 8 Targets Rammed 28 | . 14 2 . . 4 8 Kicked 13 | . 7 2 . . 4 . Crushed 1 | . 1 . . . . . Highest Temperature 328 | . 201 277 . . 15 328 Average Temperature 64 | . 35 130 . . 7 68 Received Heat Transfer 927 | . 435 . . . 147 345 Siege Activations . | . . . . . . . Robots Corrupted . | . . . . . . . Combat Hostiles . | . . . . . . . Parts Fried . | . . . . . . . Impact Corruptions . | . . . . . . . Robots Melted . | . . . . . . . Combat Hostiles . | . . . . . . . Parts Melted . | . . . . . . . Heat Transferred 100 | . . . . . . 100 Parts Sabotaged . | . . . . . . . Parts Stolen . | . . . . . . . Parts Stripped . | . . . . . . . Power Chain Reactions . | . . . . . . . Alert | -11 -10 -10 -10 -9 -8 -7 ------- Run | Yrd Mat Min Exi Min Mat Fac Peak Influence 571 | . 249 112 . . 298 571 Initial 135 | . . 64 . . . 135 Average 130 | . 69 45 . . 105 411 Maximum Alert Level 2 | . 1 . . . 1 2 Low Security (%) 75 | 100 90 100 . 100 73 12 Level 1 14 | . 9 . . . 26 32 Level 2 10 | . . . . . . 55 Level 3 . | . . . . . . . Level 4 . | . . . . . . . Level 5 . | . . . . . . . High Security . | . . . . . . . Max Security . | . . . . . . . Squads Dispatched 6 | . 2 . . . 1 3 Investigation 1 | . . . . . 1 . Extermination . | . . . . . . . Reinforcement 4 | . 2 . . . . 2 Assault . | . . . . . . . Garrison 1 | . . . . . . 1 Intercept . | . . . . . . . Searches Triggered . | . . . . . . . Construction Impeded 1 | . . . . . . 1 Haulers Reinforced 1 | . . . . . . 1 Active Scanning Responses . | . . . . . . . Cargo Convoy Interrupts . | . . . . . . . Stealth | -11 -10 -10 -10 -9 -8 -7 --------- Run | Yrd Mat Min Exi Min Mat Fac Distress Signals 9 | . 3 . . . 5 1 Communications Jammed . | . . . . . . . Distress Signals . | . . . . . . . Times Spotted 88 | . 36 3 . . 21 28 Peak Tracking Total 5 | . 4 3 . . 5 5 Tactical Retreats 6 | . 2 . . . 1 3 Traps | -11 -10 -10 -10 -9 -8 -7 ------- Run | Yrd Mat Min Exi Min Mat Fac Traps Triggered 5 | . 4 . . . 1 . Indirectly . | . . . . . . . Trap Hack Attempts . | . . . . . . . Triggered . | . . . . . . . Disarmed . | . . . . . . . Reprogrammed . | . . . . . . . Reused . | . . . . . . . Traps Extracted . | . . . . . . . Installed . | . . . . . . . Triggered . | . . . . . . . Machines | -11 -10 -10 -10 -9 -8 -7 ---------- Run | Yrd Mat Min Exi Min Mat Fac Machines Disabled 10 | . . 1 . . 1 8 Max in Single Turn 3 | . . 1 . . 1 3 Garrison Access 1 | . . . . . 1 . Machines Repaired . | . . . . . . . Machines Dismantled . | . . . . . . . Machines Sabotaged . | . . . . . . . Overloaded Fab Kills . | . . . . . . . Hacking | -11 -10 -10 -10 -9 -8 -7 --------- Run | Yrd Mat Min Exi Min Mat Fac Machines Accessed 7 | . 1 . 4 . 2 . Terminals 2 | . 1 . . . 1 . Fabricators . | . . . . . . . Repair Stations . | . . . . . . . Recycling Units . | . . . . . . . Scanalyzers . | . . . . . . . Garrison Access 1 | . . . . . 1 . Total Hacks 9 | . 2 . 4 . 3 . Successful 7 | . 1 . 4 . 2 . Failed 2 | . 1 . . . 1 . Catastrophic . | . . . . . . . Database Lockouts . | . . . . . . . Manual . | . . . . . . . Terminals 3 | . 2 . . . 1 . Fabricators . | . . . . . . . Repair Stations . | . . . . . . . Recycling Units . | . . . . . . . Scanalyzers . | . . . . . . . Garrison Access 2 | . . . . . 2 . Terminal Hacks 6 | . 1 . 4 . 1 . Record 5 | . 1 . 4 . . . Unreport Threat 1 | . . . . . 1 . Fabricator Hacks . | . . . . . . . Repair Station Hacks . | . . . . . . . Recycling Unit Hacks . | . . . . . . . Scanalyzer . | . . . . . . . Garrison Access Hacks 1 | . . . . . 1 . Seal Access 1 | . . . . . 1 . Unauthorized Hacks . | . . . . . . . Terminals . | . . . . . . . Fabricators . | . . . . . . . Repair Stations . | . . . . . . . Recycling Units . | . . . . . . . Scanalyzers . | . . . . . . . Garrison Access . | . . . . . . . Data Cores Recovered . | . . . . . . . Used . | . . . . . . . Hacking Detections 1 | . 1 . . . . . Full Trace Events . | . . . . . . . Feedback Events . | . . . . . . . Feedback Blocked . | . . . . . . . Robot Schematics Acquired . | . . . . . . . Robots Built . | . . . . . . . Authchips . | . . . . . . . Time . | . . . . . . . Total Robot Build Rating . | . . . . . . . Part Schematics Acquired . | . . . . . . . Parts Built . | . . . . . . . Authchips . | . . . . . . . Time . | . . . . . . . Total Part Build Rating . | . . . . . . . Parts Repaired . | . . . . . . . Time . | . . . . . . . Parts Recycled . | . . . . . . . Recycled Matter . | . . . . . . . Retrieved Matter . | . . . . . . . Retrieved Components . | . . . . . . . Parts Scanalyzed . | . . . . . . . Part Schematics Acquired . | . . . . . . . Parts Damaged . | . . . . . . . Bothacking | -11 -10 -10 -10 -9 -8 -7 ------------ Run | Yrd Mat Min Exi Min Mat Fac Used RIF Installer . | . . . . . . . Robots Hacked . | . . . . . . . Non-combat . | . . . . . . . Combat . | . . . . . . . Robot Hacks Applied . | . . . . . . . Relay Couplers Released . | . . . . . . . Fabnet Peak Effective % . | . . . . . . . Robots Rewired . | . . . . . . . Allies Hacked . | . . . . . . . Hacks Repelled . | . . . . . . . Allies | -11 -10 -10 -10 -9 -8 -7 -------- Run | Yrd Mat Min Exi Min Mat Fac Total Allies 3 | . . 3 . . . . Largest Group 3 | . . 3 1 . . . Highest-Rated Group 76 | . . 76 14 . . . Highest-Rated Ally 31 | . . 31 14 . . . Total Orders . | . . . . . . . Ally Attacks 6 | . . 6 . . . . Total Damage 104 | . . 104 . . . . Kills . | . . . . . . . Allies Corrupted . | . . . . . . . Allies Melted . | . . . . . . . Intel | -11 -10 -10 -10 -9 -8 -7 ------- Run | Yrd Mat Min Exi Min Mat Fac Robot Analysis Total . | . . . . . . . Derelict Logs Recovered 3 | . . 2 . 1 . . Drone Launches . | . . . . . . . Drone Recoveries . | . . . . . . . Exploration | -11 -10 -10 -10 -9 -8 -7 ------------- Run | Yrd Mat Min Exi Min Mat Fac Turns Passed 4215 | 57 1633 618 431 170 609 697 Spaces Moved 3149 | 47 1087 426 318 136 438 697 Core 495 | 28 1 . . . . 466 Treads 274 | 19 255 . . . . . Legs 2301 | . 831 426 318 136 438 152 Wheels . | . . . . . . . Hover . | . . . . . . . Flight 79 | . . . . . . 79 Fastest Speed 32 | 50 120 120 120 120 120 32 Average Speed 115 | 95 129 120 120 120 120 84 Slowest Speed 350 | 160 350 120 120 120 120 275 Overloaded Moves . | . . . . . . . Propulsion Burnouts . | . . . . . . . Robots Hopped . | . . . . . . . Cave-ins Triggered . | . . . . . . . Exploration Rate (%) 42 | 4 76 72 64 32 39 13 Regions Visited 6 Branch Regions 3 Pre-discovered Areas 2 | . . 1 . 1 . . Known Exits Taken 4 | . 1 1 1 1 . . Unknown Exits Taken 2 | 1 . . . . 1 . Scrap Searched 2 | . . 1 . 1 . . Spaces Dug . | . . . . . . . Terrain Destroyed 297 | . . . . . 114 183 Melee . | . . . . . . . Projectile . | . . . . . . . AOE 297 | . . . . . 114 183 Terrain Rammed . | . . . . . . . Walls Destroyed . | . . . . . . . Machines Disabled . | . . . . . . . Actions | -11 -10 -10 -10 -9 -8 -7 --------- Run | Yrd Mat Min Exi Min Mat Fac Total 3561 | 57 1197 518 367 142 492 788 Wait 164 | . 16 78 50 . . 20 Move 3143 | 46 1086 425 317 135 437 697 Hop . | . . . . . . . Pick Up 26 | 4 6 1 . . 10 5 Fast Attach 22 | 3 6 . . . 3 10 Attach 18 | 3 1 . . . 4 10 Detach 5 | . . . . . . 5 Swap 16 | 1 4 3 . 1 5 2 Drop 30 | . 5 2 . . 11 12 Fire 103 | . 59 7 . . 18 19 Melee . | . . . . . . . Ram 8 | . . . . . . 8 Kick 13 | . 7 2 . . 4 . Crush 7 | . 7 . . . . . Escape Stasis . | . . . . . . . Rewire 6 | . . . . 6 . . Trap . | . . . . . . . Miscellaneous . | . . . . . . . Route ------- -11/Scrapyard -10/Materials (discovered 3 exits: [*Mat x2] / *Min) -10/Mines (discovered 2 exits: *Exi / [*Sub]) -10/Exiles -9/Mines -8/Materials (discovered 2 exits: *Fac x2) -7/Factory History --------- Turn | Location | Event 15 | -11/Scrapyard | Discovered new exit (range 16) 58 | -11/Scrapyard | Entered Materials 334 | -10/Materials | Build established: Mutant 468 | -10/Materials | Core integrity fell below 50% 710 | -10/Materials | Discovered new exit (range 4) 991 | -10/Materials | Discovered new exit (range 4) 1673 | -10/Materials | Discovered new exit (range 7) 1690 | -10/Materials | Identified exit to Mines 1691 | -10/Materials | Entered Mines 1760 | -10/Mines | Learned Materials non-interactive machine intel 1769 | -10/Mines | Learned location of Zion (-6) 1792 | -10/Mines | Received a Mining Laser from a helpful Derelict 2019 | -10/Mines | Core integrity fell below 20% 2191 | -10/Mines | Discovered new exit (range 10) 2234 | -10/Mines | Deemed a non-threat by the Exiles lab entrance 2235 | -10/Mines | Discovered new exit (range 5) 2288 | -10/Mines | Identified exit to Exiles 2309 | -10/Mines | Entered Exiles 2309 | -10/Exiles | Found Exiles lab abandoned 2309 | -10/Exiles | Accompanied by 1 ally 2666 | -10/Exiles | Discovered new exit (range 14) 2689 | -10/Exiles | Identified exit to Mines 2740 | -10/Exiles | Entered Mines 2751 | -9/Mines | Learned location of Storage (-7) 2887 | -9/Mines | Discovered new exit (range 6) 2891 | -9/Mines | Assembled infested the area 2892 | -9/Mines | Identified exit to Materials 2910 | -9/Mines | Entered Materials 2910 | -8/Materials | Evolved 4 slots: Propulsion x2, Utility x2 2911 | -8/Materials | Loaded intel: 36 non-interactive machine locations 3226 | -8/Materials | Build established: Hacker-Mutant 3244 | -8/Materials | Discovered new exit (range 16) 3448 | -8/Materials | Discovered new exit (range 16) 3519 | -8/Materials | Entered Factory 3519 | -7/Factory | Evolved 2 slots: Utility x2 3788 | -7/Factory | Lost 4 parts (2n2w) 3889 | -7/Factory | Core integrity fell below 50% 3952 | -7/Factory | Garrison activated, responded to threat 4176 | -7/Factory | Core integrity fell below 20% 4210 | -7/Factory | Found Prototype Launcher 4210 | -7/Factory | Identified Rocket Array 4216 | -7/Factory | Destroyed self via exploding Nuclear Reactor Last Messages --------------- R-06 Scavenger collects Faulty Enh. Nuclear Core. Dropped Mic. Nuclear Core. Dropped Enh. Nuclear Core. W-25 Informer sends out distress signal. Imp. Sensor Array destroyed. Imp. Terrain Scanner destroyed. System corrupted: Matter fused (-9). Acquired Prototype Launcher. Identified Rocket Array. Faulty integration triggers heat surge (+362). Dropped Faulty Rocket Array. Acquired Proton Missile Launcher. Nuclear Reactor explodes. S-27 Virus destroyed. Nuclear Reactor explodes. S-27 Virus destroyed. Nuclear Reactor explodes. Proton Missile Launcher destroyed. Destroyed Proton Missile Launcher. Map ----- +----------------------------------------------------+ | ??#??###?#############+##### # ? | | ??##?################# ##### ##?########+##### | | ?##??###?############# ##### ########### ##### | | #?????#####?########## ##### # ? ????????????? | | #??#?##?####?## [# ##### # ??????????????? | | ??#??#??####### # ##### # "???? ????????? | | ??#???#?#?#?### """ +* # "?"?? ????????? | | ???????#??#??## """ #* # ??????????????? | | ???????#?##?### """ # ]!* """ # "?????????????? | | ?????????????## #! ]! """ !# ??????????????? | | ??????????############ ]* """ # ??????????????? | | ???#??????############ # ??????????????? | | ?????#????## # !!! """ # ""????????????? | | ??????#?#### """ """ # ^!!! """ ####????????????? | | ????#?????## """ """ # !!! """ ???????? | | ???#??????## """ """ / ???????? | | ??????????## # ! ???????? | | ?????#????## ! # ???????? | | ??????????## ! + ! ???????? | | ??????????## ##### ####### ???????? | | ????#?????#####/###### # ???????? | | ??????#???##### ###### """??????????? | | ??????#?????### ##?### [ """ ##???????? | | ?????????????## ###### [ """ ##???????? | | ????#????????## ###### ##???????? | | ????????#?#??## s @ ##???????? | | ????????#????######### ! ##???????? | | ?????????????######### ] ##???????? | | ?????#??????????#???######################???????? | | | | | | | | | | | | | | | | | | | | | | | | | | | | | | | | | | | | | | | | | | | +----------------------------------------------------+ Best States ------------- Heat Dissipation 34 Energy Generation 18 Energy Capacity 300 Matter Stores 300 Matter Capacity 300 Sight Range 20 Robot Scan Range 15 Terrain Scan Range 16 Terrain Scan Density 110 Armor Coverage 150 Evasion (%) 63 Recoil Reduction 2 Offensive Hacking 10 Defensive Hacking 10 Item Schematics ----------------- None Robot Schematics ------------------ None Fabricated ------------ Nothing Alien Tech Used ----------------- None Achievements -------------- Everything Is Under Control Challenges ------------ None Game ------ Seed NavigationSurgeModule Manual? 0 Play Time 00:29:04 Cumulative 24.8 hours Start 2024.09.17 @ 18:58:29 End 2024.09.17 @ 19:28:29 Sessions 1 Manual Loads 0 Difficulty Rogue Special Mode None Game No. 47 Rogue 47 Adventurer 0 Explorer 0 Win Type - Total 0 Types 0/0/0/0/0/0/0/0/0 Lore% 12 Gallery% 29 Achievement% 21 Wizard Run 0 Options --------- Layout 1 ASCII 0 Keyboard 0 Movement Arrows Keybinds 0 Fullscreen 2 Font 24/Smallcaps Map View 50x35 Zoom Use 44% Tactical HUD 0 Map Filters NONE Filters NONE Steam 1 RUN: 4f78cc16-a15b-4c17-b4eb-89a99a40ef1f